bitfinex/quotes_ETHUSD_20251117
["timestamp","ask_amount","ask_price","bid_price","bid_amount"]
[1763388198986,0.002,3120.1,3119.6,0.13128]
[1763388199182,0.002,3120.1,3119.7,0.405504]
[1763388199707,0.002,3120.1,3119.6,0.13128]
[1763388200023,0.002,3120.1,3119.7,0.0629]
[1763388200183,0.002,3120.1,3118.9,0.85905918]
[1763388200380,0.002,3120.1,3118.9,0.20049246]
[1763388200580,0.002,3120.1,3118.6,0.1807]
[1763388200809,0.002,3120.1,3118.7,0.405504]
[1763388201118,0.002,3120.1,3119.0,0.405504]
[1763388201451,0.002,3120.1,3120.0,0.468404]
[1763388201664,0.002,3120.5,3120.1,0.405504]
[1763388201811,0.0012,3120.5,3120.1,0.405504]
[1763388202016,0.0012,3120.5,3120.2,0.4653]
[1763388202210,0.0012,3120.5,3120.3,0.405504]
[1763388202676,0.0012,3120.5,3120.4,0.870804]
[1763388203027,0.0012,3120.5,3120.1,0.58842725]
[1763388203227,0.0012,3120.5,3120.1,0.18292325]
[1763388203433,0.0012,3120.5,3120.1,1.04226308]
[1763388203628,0.0002,3120.5,3120.2,0.85933983]
[1763388203829,0.0002,3120.5,3120.3,1.14586545]
[1763388204176,0.0002,3120.5,3120.1,1.08991589]
[1763388204177,0.002,3121.9,3120.1,1.08991589]
[1763388204459,0.002,3121.9,3121.3,0.8565735]
[1763388204676,0.002,3121.9,3121.0,0.8565735]
[1763388204812,0.002,3121.9,3121.4,0.8565735]
[1763388205016,0.002,3121.9,3121.8,2.118651]
[1763388205237,0.002,3121.9,3121.8,0.405504]
[1763388205447,0.002,3121.9,3121.8,2.118651]
[1763388205664,0.002,3122.2,3121.9,0.405504]
[1763388205812,0.002,3122.2,3122.1,0.405504]
[1763388206178,0.002,3122.2,3122.1,2.85123042]
[1763388206374,0.002,3122.2,3122.1,1.71207368]
[1763388206648,0.002,3122.2,3122.1,0.80508104]
[1763388206849,0.002,3122.2,3122.0,1.25809354]
[1763388207052,0.002,3122.2,3122.1,1.25809354]
[1763388207353,0.002,3122.2,3122.1,0.405504]
[1763388207510,0.002,3122.2,3122.1,1.25809354]
[1763388207710,0.002,3122.2,3122.1,1.54466074]
[1763388207929,0.002,3122.2,3122.1,1.86998555]
[1763388208340,0.002,3122.2,3122.1,0.73082881]
[1763388208551,0.002,3122.2,3122.1,0.405504]
[1763388209776,0.002,3123.0,3122.2,0.405504]
[1763388210087,0.1864,3126.0,3122.8,0.405504]
[1763388210259,0.1864,3126.0,3123.4,0.405504]
[1763388210449,0.4768,3125.9,3123.4,0.405504]
[1763388210649,0.1864,3126.0,3123.4,0.405504]
[1763388210850,0.1864,3126.0,3123.6,0.405504]
[1763388211407,0.1864,3126.0,3123.5,0.405504]
[1763388211606,0.4768,3125.9,3123.1,0.8480784]
[1763388211897,0.405504,3125.8,3121.8,2.485821]
[1763388212077,0.73469812,3125.8,3121.8,1.6377426]
[1763388212249,0.405504,3125.6,3121.8,1.6377426]
[1763388212786,0.405504,3125.4,3121.8,1.6377426]
[1763388212971,0.405504,3125.4,3121.9,0.16377426]
[1763388213288,0.405504,3125.2,3121.9,0.16377426]
[1763388213504,0.405504,3125.2,3121.4,0.8480784]
[1763388213682,0.405504,3125.0,3121.2,0.8480784]
[1763388214054,0.405504,3124.8,3121.2,0.8480784]
[1763388214363,0.405504,3124.8,3121.1,0.17635661]
[1763388214582,0.405504,3124.6,3121.1,0.17635661]
[1763388214885,0.4768,3124.5,3120.7,0.8480784]
[1763388215196,0.4768,3124.5,3120.8,0.8480784]
[1763388215197,0.405504,3124.4,3120.8,0.8480784]
[1763388215679,0.405504,3124.4,3120.6,1.1307712]
[1763388215680,0.4768,3124.3,3120.9,0.8480784]
[1763388215855,0.4768,3124.3,3120.8,0.90699264]
[1763388216061,0.4768,3124.3,3121.1,0.405504]
[1763388216674,0.4768,3124.3,3121.0,0.405504]
[1763388216898,0.4768,3124.3,3121.1,0.84536084]
[1763388217111,0.4768,3124.3,3121.4,0.405504]
[1763388217313,0.1999,3124.7,3122.0,0.405504]
[1763388217515,0.1999,3125.0,3122.3,1.25086484]
[1763388217697,0.1999,3125.0,3122.5,1.31249664]
[1763388217890,0.6767,3125.0,3122.7,0.405504]
[1763388218070,0.6767,3125.0,3122.1,0.84536084]
[1763388218396,0.6767,3125.0,3122.0,0.03203074]
[1763388218397,0.405504,3124.8,3122.0,0.03203074]
[1763388218598,0.405504,3124.6,3122.2,0.03202869]
[1763388218808,0.4768,3124.7,3122.2,0.03202869]
[1763388218988,0.002,3124.3,3121.9,0.03203177]
[1763388219474,0.4768,3124.2,3121.9,0.03203177]
[1763388219675,0.405504,3124.1,3120.9,1.06375176]
[1763388219910,1.31249664,3123.8,3120.1,1.02828409]
[1763388220125,1.31249664,3123.2,3120.2,0.03204922]
[1763388220277,0.6767,3123.1,3120.1,0.18292325]
[1763388220477,0.405504,3123.0,3120.0,0.0639]
[1763388220707,0.882304,3123.0,3120.0,0.0639]
[1763388220887,0.882304,3123.0,3120.1,0.03205025]
[1763388221208,0.405504,3122.8,3120.1,0.03205025]
[1763388221413,0.405504,3122.8,3120.0,0.0639]
[1763388221617,0.4768,3122.7,3120.1,0.405504]
[1763388221912,0.4768,3122.7,3120.2,0.01406236]
[1763388222570,0.4768,3122.7,3120.1,0.93598283]
[1763388222813,0.4768,3122.7,3120.7,1.31249664]
[1763388223012,0.1999,3123.1,3120.7,1.31249664]
[1763388223013,0.1999,3123.1,3120.9,0.405504]
[1763388223218,0.6767,3123.4,3121.3,1.31249664]
[1763388223417,0.1999,3123.7,3121.7,1.25086484]
[1763388223618,2.1411,3126.6,3121.9,1.31249664]
[1763388223619,0.4768,3124.2,3121.9,1.31249664]
[1763388223774,0.4768,3124.2,3122.1,0.405504]
[1763388224894,0.4768,3124.2,3122.1,0.0008]
[1763388224895,0.476,3124.2,3122.1,0.0008]
[1763388225098,0.476,3124.2,3122.2,0.0008]
[1763388225502,6.99115649,3125.8,3122.3,0.405504]
[1763388225734,7.19105649,3126.1,3122.5,0.405504]
[1763388226023,7.19105649,3126.1,3122.7,0.405504]
[1763388226229,7.19105649,3126.1,3122.9,0.405504]
[1763388226437,7.19105649,3126.1,3123.1,0.405504]
[1763388226598,7.19105649,3126.1,3123.1,0.43749098]
[1763388226795,0.90699264,3126.0,3123.1,0.43829098]
[1763388227028,0.4768,3124.9,3123.1,0.43829098]
[1763388227235,7.19105649,3126.1,3123.1,1.25086484]
[1763388227420,0.4788,3124.7,3123.1,0.405504]
[1763388227795,0.4788,3124.7,3122.9,0.405504]
[1763388227957,0.4788,3124.7,3122.8,0.406304]
[1763388228156,0.4788,3124.7,3123.1,0.405504]
[1763388228356,0.002,3124.7,3123.1,1.25086484]
[1763388228654,0.002,3124.7,3123.1,1.25166484]
[1763388229219,0.002,3124.7,3123.3,0.405504]
[1763388229436,0.002,3124.7,3123.4,0.0008]
[1763388229640,0.002,3124.7,3123.5,1.25086484]
[1763388229840,0.002,3124.7,3123.9,0.405504]
[1763388230358,0.002,3124.7,3124.0,0.405504]
[1763388230705,0.002,3124.7,3123.6,1.25086484]
[1763388231202,0.002,3124.7,3123.9,0.405504]
[1763388232352,0.002,3124.7,3124.1,0.405504]
[1763388232673,0.002,3124.7,3124.2,0.405504]
[1763388232963,0.002,3124.7,3124.2,1.78068198]
[1763388233330,0.002,3124.7,3124.2,0.64991078]
[1763388233526,0.002,3124.7,3124.2,1.79395575]
[1763388233776,0.2019,3124.7,3124.2,1.14404497]
[1763388234063,0.002,3124.7,3124.2,0.405504]
[1763388234363,0.4768,3124.6,3124.0,0.85803653]
[1763388234559,0.2019,3124.7,3124.0,0.85803653]
[1763388234866,0.2019,3124.7,3124.1,0.405504]
[1763388235049,0.002,3124.7,3124.1,0.405504]
[1763388235261,0.002,3124.7,3124.1,1.26354053]
[1763388235451,0.002,3124.7,3124.2,0.85803653]
[1763388235754,0.002,3124.7,3124.2,8.78226401]
[1763388236065,0.002,3125.0,3124.7,0.405504]
[1763388236257,0.002,3125.0,3124.9,10.588078]
[1763388236563,0.002,3125.0,3124.9,1.31249664]
[1763388236925,0.002,3125.0,3124.9,8.30365313]
[1763388237131,0.002,3125.0,3124.9,11.6468858]
[1763388237564,0.002,3125.0,3124.9,9.36246093]
[1763388239283,0.002,3125.0,3124.9,2.37130444]
[1763388239501,0.002,3125.0,3124.9,1.31249664]
[1763388239841,0.002,3125.0,3124.9,10.01409582]
[1763388240060,0.1999,3126.9,3125.0,1.31249664]
[1763388240284,0.4727,3126.8,3125.7,0.405504]
[1763388240473,0.4727,3126.8,3125.7,1.26012174]
[1763388240674,0.4727,3126.8,3125.7,0.405504]
[1763388241239,0.4727,3126.8,3125.6,0.405504]
[1763388241760,0.197,3125.7,3125.3,0.85461774]
[1763388241964,0.4727,3125.6,3125.3,0.19941081]
[1763388242157,0.6697,3126.0,3125.0,0.85461774]
[1763388242357,0.4727,3126.6,3125.3,1.26012174]
[1763388242552,0.4727,3126.6,3125.5,0.405504]
[1763388242850,0.1999,3126.9,3125.9,0.405504]
[1763388243157,0.4727,3126.8,3125.6,0.85461774]
[1763388243377,0.197,3125.7,3125.4,0.85461774]
[1763388243705,0.197,3125.7,3124.4,0.85461774]
[1763388243840,0.4727,3125.6,3124.3,0.85461774]
[1763388244040,0.4727,3125.6,3124.4,0.85461774]
[1763388244284,0.197,3125.7,3124.7,0.85461774]
[1763388244452,0.6697,3125.7,3124.7,1.05402855]
[1763388244653,0.6697,3125.7,3124.4,0.85461774]
[1763388244858,0.4727,3125.6,3124.2,0.24075855]
[1763388245053,0.4727,3125.6,3124.3,0.405504]
[1763388245539,0.4727,3126.5,3124.8,6.99115649]
[1763388245739,0.4727,3126.5,3125.0,0.85461774]
[1763388246051,0.4727,3126.5,3124.8,0.85461774]
[1763388246265,0.4727,3126.5,3124.5,0.405504]
[1763388246668,0.4727,3126.5,3124.9,0.405504]
[1763388246907,0.4727,3126.5,3125.4,1.31249664]
[1763388247882,0.1962,3125.5,3124.9,0.85461774]
[1763388248087,0.1962,3125.5,3124.9,0.19941081]
[1763388248497,0.1962,3125.5,3124.5,0.03131421]
[1763388248498,0.4727,3125.4,3124.5,0.03131421]
[1763388248678,0.4727,3125.4,3124.8,0.90699264]
[1763388248878,0.4727,3125.4,3124.7,8.32470614]
[1763388248879,0.1962,3125.5,3124.7,8.32470614]
[1763388249207,0.197,3125.9,3124.8,0.90699264]
[1763388249373,0.197,3125.9,3124.9,0.405504]
[1763388249924,0.197,3125.9,3125.4,0.405504]
[1763388250127,0.4727,3126.3,3125.6,8.32470614]
[1763388250356,0.1999,3126.9,3125.6,8.32470614]
[1763388250357,0.4727,3126.8,3125.8,0.405504]
[1763388251271,0.197,3125.9,3125.7,0.405504]
[1763388251676,0.4727,3125.8,3125.6,0.405504]
[1763388251873,0.4727,3126.8,3125.6,0.62221544]
[1763388252132,0.4727,3126.8,3125.6,9.80153932]
[1763388252288,0.4727,3126.8,3125.9,0.85461774]
[1763388252619,0.4727,3126.8,3126.1,1.26012174]
[1763388252830,0.1999,3127.8,3126.1,1.26012174]
[1763388252831,0.4727,3127.4,3126.2,0.85461774]
[1763388252970,0.197,3127.1,3126.5,1.26012174]
[1763388253375,0.197,3127.1,3126.6,0.405504]
[1763388253616,0.4727,3127.0,3126.6,0.405504]
[1763388253820,0.4727,3127.0,3126.5,0.85461774]
[1763388254117,0.197,3127.1,3126.6,0.405504]
[1763388254531,0.4727,3127.0,3126.6,0.405504]
[1763388254678,0.197,3127.1,3126.6,1.26012174]
[1763388255036,0.197,3128.7,3127.1,0.405504]
[1763388255232,0.197,3128.7,3128.1,1.26239701]
[1763388255526,0.197,3128.7,3127.9,0.85689301]
[1763388255527,0.4727,3128.6,3127.9,0.85689301]
[1763388255673,0.197,3128.0,3127.8,0.85689301]
[1763388255870,0.197,3128.0,3127.6,0.85689301]
[1763388256110,0.197,3128.7,3127.5,0.85689301]
[1763388256319,0.4727,3128.6,3127.3,0.85689301]
[1763388256487,0.4727,3128.6,3127.4,0.405504]
[1763388256677,0.002,3127.5,3127.4,0.405504]
[1763388257212,0.002,3127.5,3127.4,1.26239701]
[1763388257374,0.002,3127.5,3127.3,0.85689301]
[1763388257932,0.002,3127.5,3127.4,0.405504]
[1763388258422,0.002,3127.5,3127.4,0.43587166]
[1763388258620,0.002,3127.5,3127.4,0.405504]
[1763388258922,0.002,3127.5,3127.4,1.26157334]
[1763388259086,0.002,3127.5,3127.4,1.81464553]
[1763388259294,0.002,3127.5,3127.4,1.81544553]
[1763388259525,0.002,3127.5,3127.4,1.57991416]
[1763388259826,0.1954,3129.0,3127.5,0.90699264]
[1763388259827,0.4728,3128.4,3127.5,0.90699264]
[1763388260032,0.4728,3128.4,3127.4,0.26661752]
[1763388260033,0.4728,3128.4,3127.6,0.8868903]
[1763388260210,0.4728,3128.4,3127.8,0.405504]
[1763388260534,0.4728,3128.4,3127.8,0.03101752]
[1763388260696,0.4728,3128.4,3127.6,0.405504]
[1763388261027,0.4728,3128.4,3127.5,0.85587079]
[1763388261235,0.4728,3128.4,3127.4,0.85587079]
[1763388261436,0.4728,3128.4,3127.3,0.85587079]
[1763388261601,0.4728,3128.4,3127.0,0.85587079]
[1763388261823,0.4728,3128.4,3127.1,0.405504]
[1763388262249,0.4728,3128.4,3127.1,1.26137479]
[1763388262546,0.4728,3128.4,3127.1,0.405504]
[1763388262732,0.4728,3128.4,3127.3,0.405504]
[1763388263551,0.4728,3128.7,3127.3,0.405504]
[1763388263755,0.4728,3128.7,3128.0,0.85587079]
[1763388263952,0.4728,3128.7,3128.1,0.03196828]
[1763388264114,0.4728,3128.7,3128.0,0.405504]
[1763388264315,0.4728,3128.7,3127.8,0.85587079]
[1763388264527,0.4728,3128.7,3127.5,0.85587079]
[1763388264726,0.4728,3128.7,3127.2,0.85587079]
[1763388264951,0.4728,3128.7,3127.0,0.85587079]
[1763388265154,0.4728,3128.7,3127.3,0.85587079]
[1763388265338,0.4728,3128.7,3127.5,0.85587079]
[1763388265570,0.4728,3128.7,3127.6,1.26137479]
[1763388265871,0.4728,3128.7,3127.5,0.85587079]
[1763388266071,0.4728,3128.7,3127.3,1.23186032]
[1763388266272,0.4728,3128.7,3127.4,0.88784623]
[1763388266491,0.4728,3128.7,3127.4,0.405504]
[1763388266806,0.197,3129.7,3127.5,0.85667079]
[1763388267010,0.6698,3129.7,3128.7,1.26137479]
[1763388267296,0.6698,3129.7,3128.9,0.405504]
[1763388267644,0.6698,3129.7,3128.9,0.85587079]
[1763388267849,0.005,3130.9,3129.1,0.405504]
[1763388268057,0.005,3130.9,3128.8,1.14116106]
[1763388268058,0.6754,3130.6,3129.7,0.85587079]
[1763388268350,0.6754,3130.6,3129.7,0.19970319]
[1763388268562,0.4784,3130.5,3129.5,0.405504]
[1763388269203,0.4784,3130.5,3129.7,0.405504]
[1763388269384,0.4784,3130.5,3129.8,0.03194885]
[1763388269964,0.4784,3130.5,3129.6,0.405504]
[1763388270166,0.4784,3130.5,3129.4,0.85587079]
[1763388270366,0.4784,3130.5,3129.5,0.405504]
[1763388270693,0.4784,3130.5,3129.7,0.405504]
[1763388270887,0.4784,3130.5,3129.2,0.03195499]
[1763388270888,0.4784,3130.5,3129.4,1.26137479]
[1763388271188,0.4776,3130.5,3129.7,0.405504]
[1763388271353,0.005,3130.9,3129.9,0.405504]
[1763388271547,0.005,3130.9,3130.1,0.405504]
[1763388271748,0.005,3130.9,3130.0,0.405504]
[1763388271990,0.005,3130.9,3130.1,0.03194785]
[1763388272763,0.005,3130.9,3130.3,0.405504]
[1763388273018,0.005,3130.9,3130.1,0.405504]
[1763388273166,0.005,3130.9,3130.0,0.43745082]
[1763388273167,0.0034,3130.9,3130.3,0.405504]
[1763388273373,0.90920055,3134.7,3131.4,0.6804]
[1763388273374,0.09083496,3134.7,3131.4,0.6804]
[1763388273670,0.1898,3133.1,3132.4,1.76286343]
[1763388273880,0.4834,3132.9,3131.7,0.8877982]
[1763388274124,0.4834,3132.9,3131.7,0.03192741]
[1763388274284,0.4834,3132.9,3130.9,8.68621852]
[1763388274285,1.25302198,3132.8,3131.4,0.03192741]
[1763388274484,0.4834,3132.9,3131.2,0.03193663]
[1763388274485,0.4784,3132.7,3131.2,0.03193663]
[1763388274883,0.4784,3132.7,3131.0,0.85587079]
[1763388275206,0.4784,3132.7,3131.0,0.19970319]
[1763388275408,0.4784,3132.7,3130.5,0.85587079]
[1763388275615,0.4784,3132.7,3130.6,0.88781354]
[1763388275809,0.002,3131.2,3130.7,0.03194173]
[1763388276109,0.002,3131.2,3131.1,0.405504]
[1763388276421,0.002,3131.2,3131.1,1.35172608]
[1763388276756,0.005,3132.9,3131.1,3.06346767]
[1763388277011,0.005,3132.9,3131.7,0.405504]
[1763388277179,0.005,3132.9,3132.1,6.97447693]
[1763388277377,0.005,3132.9,3132.8,0.405504]
[1763388277820,0.005,3132.9,3132.3,0.405504]
[1763388278486,0.005,3132.9,3132.1,0.03192746]
[1763388278677,0.4784,3132.8,3132.0,0.03192848]
[1763388278871,0.4784,3132.8,3131.4,0.03193459]
[1763388279071,0.005,3132.9,3131.4,0.03193459]
[1763388279316,0.005,3132.9,3131.8,0.84828874]
[1763388279488,0.005,3132.9,3132.0,0.405504]
[1763388279689,0.4834,3132.9,3132.0,0.405504]
[1763388279918,0.4834,3132.9,3131.6,0.405504]
[1763388280085,0.4834,3132.9,3131.8,0.405504]
[1763388280426,0.4834,3132.9,3132.0,6.97447693]
[1763388280427,0.005,3132.9,3132.0,6.97447693]
[1763388280645,0.005,3132.9,3132.1,2.04187179]
[1763388280795,0.005,3132.9,3132.1,1.13487915]
[1763388281000,0.005,3132.9,3131.9,0.405504]
[1763388281309,0.005,3132.9,3132.2,0.84828874]
[1763388281507,0.005,3132.9,3132.5,0.84828874]
[1763388281717,0.005,3132.9,3132.6,0.03192236]
[1763388281922,0.005,3132.9,3132.7,0.405504]
[1763388282127,0.005,3132.9,3132.8,0.43742432]
[1763388284531,0.005,3133.9,3132.9,0.405504]
[1763388284798,0.005,3133.9,3133.1,0.405504]
[1763388285002,0.005,3133.9,3132.8,0.405504]
[1763388285222,0.005,3133.9,3132.9,0.0319193]
[1763388285410,0.4834,3133.9,3132.9,0.0319193]
[1763388285613,0.4834,3133.9,3132.3,1.13105166]
[1763388285614,0.4834,3133.9,3132.6,0.03192236]
[1763388285922,0.4834,3133.9,3132.7,0.405504]
[1763388286234,0.005,3133.9,3132.9,0.405504]
[1763388286443,0.005,3133.9,3133.1,0.405504]
[1763388286612,0.005,3133.9,3133.3,0.405504]
[1763388286941,0.005,3133.9,3133.5,0.405504]
[1763388287101,0.005,3133.9,3133.2,0.84828874]
[1763388287102,0.005,3133.9,3133.7,0.405504]
[1763388287303,0.005,3133.9,3133.8,0.43741414]
[1763388288252,0.005,3133.9,3133.2,0.03191625]
[1763388288417,0.005,3133.9,3132.9,0.84828874]
[1763388288619,0.005,3133.9,3132.8,0.84828874]
[1763388288814,0.005,3133.9,3132.7,0.84828874]
[1763388289028,0.005,3133.9,3132.8,0.03192032]
[1763388289456,0.005,3133.9,3132.8,0.88020906]
[1763388289667,0.005,3133.9,3132.9,0.405504]
[1763388289816,0.005,3133.9,3133.1,0.405504]
[1763388290015,0.005,3133.9,3133.3,0.405504]
[1763388290258,0.005,3133.9,3133.3,0.03191523]
[1763388291548,0.4834,3133.9,3132.7,0.03192032]
[1763388291751,0.4834,3133.9,3132.3,0.84828874]
[1763388292059,0.4834,3133.9,3131.2,2.48638131]
[1763388292225,0.4834,3133.9,3131.3,0.3867439]
[1763388293858,0.03192352,3133.8,3131.3,0.03193561]
[1763388294044,0.4784,3133.8,3131.3,0.03193561]
[1763388294924,0.4784,3133.8,3131.4,0.405504]
[1763388295165,0.4784,3133.8,3131.6,0.405504]
[1763388295351,0.4784,3133.8,3131.8,0.405504]
[1763388295657,0.4784,3133.8,3132.0,0.405504]
[1763388295858,0.4784,3133.8,3132.2,0.405504]
[1763388296024,0.4784,3133.8,3132.4,0.405504]
[1763388296225,0.4784,3133.8,3131.1,3.19384034]
[1763388296226,0.4784,3133.8,3132.6,0.405504]
[1763388296426,0.4784,3133.8,3132.3,0.405504]
[1763388296627,0.4784,3133.8,3131.7,0.03193153]
[1763388297242,0.4784,3133.8,3131.8,0.405504]
[1763388297576,0.4784,3133.8,3132.0,0.405504]
[1763388297776,0.4784,3133.8,3132.2,0.405504]
[1763388298269,0.1981,3132.3,3131.1,2.2868477]
[1763388298433,0.1981,3132.3,3131.2,0.22878477]
[1763388298639,0.1981,3132.4,3131.2,0.22878477]
[1763388299040,0.1981,3132.4,3131.3,0.405504]
[1763388300372,0.1981,3132.4,3131.5,0.405504]
[1763388300970,0.4764,3133.1,3131.7,0.405504]
[1763388301171,0.4764,3133.1,3131.9,0.405504]
[1763388301172,0.1981,3133.0,3131.9,0.405504]
[1763388301572,0.6745,3133.0,3131.8,0.90699264]
[1763388301776,0.43662752,3132.9,3131.2,2.2818477]
[1763388301937,0.1981,3131.4,3129.6,4.06517793]
[1763388302137,0.1981,3131.4,3129.7,0.03195194]
[1763388302338,0.4764,3131.3,3129.1,0.005]
[1763388302534,0.1981,3130.2,3129.2,0.03195704]
[1763388302782,0.4764,3131.3,3129.2,0.03195704]
[1763388302941,0.1981,3130.6,3129.2,0.03195704]
[1763388303165,0.4764,3131.2,3129.2,0.52275704]
[1763388303362,0.1981,3130.6,3129.2,0.52275704]
[1763388303790,0.1981,3131.4,3130.2,0.03194684]
[1763388303997,0.1981,3130.3,3130.1,0.005]
[1763388304322,0.1981,3130.3,3129.1,0.005]
[1763388304482,0.91302752,3130.2,3129.1,0.005]
[1763388304815,0.881904,3130.2,3128.0,0.0319693]
[1763388305104,0.405504,3130.0,3128.1,0.03196828]
[1763388305308,0.405504,3130.0,3127.4,0.03197544]
[1763388305492,0.1981,3130.3,3127.0,0.001]
[1763388305493,0.405504,3129.8,3127.0,0.001]
[1763388305683,0.1981,3127.5,3127.0,0.001]
[1763388305879,0.405504,3129.6,3127.0,0.001]
[1763388306079,0.1981,3127.8,3127.0,0.001]
[1763388306281,0.1981,3127.1,3127.0,0.001]
[1763388306781,0.6745,3127.1,3127.0,0.001]
[1763388307103,0.6745,3127.1,3126.6,0.001]
[1763388307327,0.4764,3127.0,3126.6,0.001]
[1763388308009,0.405504,3126.9,3126.6,0.001]
[1763388308169,0.4764,3127.0,3126.6,0.001]
[1763388308511,0.1981,3127.1,3126.6,0.001]
[1763388308512,0.4764,3126.9,3126.6,0.001]
[1763388309302,0.405504,3126.8,3126.6,0.001]
[1763388309625,0.4764,3126.9,3124.5,0.001]
[1763388309626,0.405504,3126.6,3124.5,0.001]
[1763388309775,0.4764,3126.8,3124.5,0.001]
[1763388309975,0.405504,3126.6,3124.5,0.001]
[1763388310307,0.405504,3126.4,3124.5,0.001]
[1763388310683,0.405504,3126.2,3124.5,0.001]
[1763388310879,0.1981,3124.6,3124.5,0.001]
[1763388311422,0.4764,3124.6,3124.5,0.001]
[1763388311725,0.1981,3125.2,3124.5,0.001]
[1763388311726,0.4764,3125.1,3124.5,0.001]
[1763388311877,0.405504,3124.9,3124.2,0.001]
[1763388312079,0.405504,3124.7,3123.5,0.001]
[1763388312281,0.1981,3123.6,3123.5,0.001]
[1763388312830,1.080004,3123.6,3123.2,0.001]
[1763388313034,0.4764,3123.5,3123.2,0.001]
[1763388313479,0.03112352,3123.4,3123.2,0.001]
[1763388313816,0.4764,3123.3,3123.2,0.001]
[1763388314381,0.881904,3123.3,3123.2,0.001]
[1763388314684,0.405504,3123.2,3120.8,0.4908]
[1763388314924,0.405504,3123.0,3120.5,0.01266901]
[1763388315427,0.405504,3122.8,3120.0,0.03305128]
[1763388315579,0.405504,3122.8,3120.0,0.52385128]
[1763388315784,0.405504,3122.6,3120.0,0.4918]
[1763388315984,0.405504,3122.4,3120.1,0.03205025]
[1763388316289,0.405504,3122.2,3120.0,0.001]
[1763388316495,0.405504,3122.0,3120.0,0.001]
[1763388316700,0.405504,3122.0,3120.0,0.03305128]
[1763388316894,0.405504,3121.8,3120.0,0.03305128]
[1763388317107,0.404704,3121.8,3120.0,0.001]
[1763388317444,0.48502352,3121.7,3120.0,0.001]
[1763388317584,0.4539,3121.7,3120.0,0.001]
[1763388318726,0.03112352,3121.6,3120.0,0.001]
[1763388318936,0.03112352,3121.5,3120.0,0.001]
[1763388319221,0.1995,3120.1,3120.0,0.001]
[1763388319425,0.03112352,3122.4,3120.0,0.001]
[1763388319426,0.405504,3122.3,3120.0,0.001]
[1763388319619,0.405504,3120.8,3120.0,0.001]
[1763388319824,0.1995,3120.9,3120.0,0.001]
[1763388320289,0.4539,3120.8,3120.0,0.001]
[1763388321683,0.1995,3121.3,3120.0,0.001]
[1763388321999,0.1995,3121.3,3120.1,0.1717]
[1763388322194,0.6534,3121.3,3120.1,0.1717]
[1763388322588,0.4539,3121.2,3120.1,0.1717]
[1763388323523,0.1981,3122.5,3120.2,0.49324922]
[1763388323723,0.4539,3121.9,3120.3,0.405504]
[1763388324036,0.1981,3122.5,3120.3,0.4375522]
[1763388324785,0.1981,3122.5,3120.1,0.1717]
[1763388324786,0.48502352,3122.4,3120.1,0.1717]
[1763388324991,0.405504,3122.2,3120.0,0.001]
[1763388325313,0.4539,3122.1,3120.1,0.1717]
[1763388325525,0.03112352,3122.0,3120.2,0.405504]
[1763388325729,0.405504,3121.9,3120.1,0.1717]
[1763388325930,0.405504,3121.9,3120.2,0.03204922]
[1763388326131,0.4539,3121.8,3120.2,0.03204922]
[1763388326335,0.4539,3121.8,3120.3,0.0320482]
[1763388326636,0.4539,3122.4,3120.5,0.405504]
[1763388327020,0.4539,3122.4,3120.6,0.4612]
[1763388327221,0.1981,3122.5,3120.7,0.405504]
[1763388327428,0.4987,3122.3,3120.9,0.405504]
[1763388327740,0.1981,3122.5,3121.0,0.03204101]
[1763388328098,0.6968,3122.5,3121.1,0.03203998]
[1763388328309,0.4987,3123.0,3121.2,0.405504]
[1763388328636,0.4987,3123.0,3121.4,0.405504]
[1763388328801,0.4987,3123.0,3121.3,0.1747]
[1763388329234,0.43662752,3122.9,3120.4,0.4987]
[1763388329516,0.405504,3122.9,3121.7,0.0008]
[1763388329731,0.4987,3122.8,3121.7,0.0008]
[1763388330446,0.1843,3121.8,3121.7,0.0008]
[1763388330817,0.1981,3123.6,3121.7,0.0008]
[1763388331017,0.4987,3123.5,3121.7,0.53153382]
[1763388331218,0.4987,3123.5,3121.8,0.405504]
[1763388331419,0.1981,3123.6,3122.0,0.405504]
[1763388331669,0.03112352,3125.7,3122.2,0.405504]
[1763388331670,0.6968,3124.0,3122.2,0.405504]
[1763388331821,0.1981,3124.0,3122.4,0.405504]
[1763388332010,0.1843,3124.3,3122.5,0.03202562]
[1763388332202,0.002,3122.9,3122.5,0.70142562]
[1763388332405,0.002,3122.9,3122.5,0.6694]
[1763388332624,0.002,3122.9,3122.6,0.93622859]
[1763388333161,0.002,3122.9,3122.8,0.405504]
[1763388333656,0.002,3122.9,3122.8,0.904204]
[1763388334240,0.002,3122.9,3122.5,0.1707]
[1763388334650,0.002,3122.9,3122.6,0.03202459]
[1763388334831,0.002,3122.9,3122.5,0.6694]
[1763388335228,0.002,3122.9,3121.7,0.0008]
[1763388335472,0.002,3123.3,3121.8,0.4987]
[1763388335632,0.002,3123.3,3121.8,0.52439851]
[1763388335819,0.002,3123.3,3121.7,0.0008]
[1763388336019,0.1843,3121.8,3121.7,0.0008]
[1763388336855,0.1843,3121.8,3120.3,0.1]
[1763388337662,0.4987,3121.7,3120.1,0.1717]
[1763388337862,0.4987,3121.7,3120.0,0.001]
[1763388337863,0.43662752,3121.6,3120.0,0.001]
[1763388338071,0.405504,3121.6,3120.0,0.001]
[1763388338233,0.4987,3121.7,3120.0,0.001]
[1763388338234,0.405504,3121.4,3120.0,0.001]
[1763388338635,0.1843,3120.1,3120.0,0.001]
[1763388339162,0.683,3120.1,3120.0,0.001]